[Event "Live Chess"]
[Site "Chess.com"]
[Date "2023.05.20"]
[Round "-"]
[White "NatashaRegan"]
[Black "GMHarry-youtube"]
[Result "0-1"]
[WhiteElo "1741"]
[BlackElo "2039"]
[TimeControl "300"]
[EndTime "14:31:13 PDT"]
[Termination "GMHarry-youtube won by resignation"]

1. e4 {[%clk 0:04:56.5]} 1... c5 {[%clk 0:04:58.8]} 2. d4 {[%clk 0:04:54.8]}
2... cxd4 {[%clk 0:04:57.7]} 3. c3 {[%clk 0:04:54.1]} 3... dxc3 {[%clk
0:04:56.9]} 4. Nxc3 {[%clk 0:04:53.2]} 4... Nc6 {[%clk 0:04:56.1]} 5. Bc4 {[%clk
0:04:52.1]} 5... e6 {[%clk 0:04:55.6]} 6. Nf3 {[%clk 0:04:51.1]} 6... Bb4 {[%clk
0:04:53.5]} 7. O-O {[%clk 0:04:49.1]} 7... Nge7 {[%clk 0:04:50.9]} 8. Bg5 {[%clk
0:04:44.8]} 8... f6 {[%clk 0:04:47.5]} 9. Be3 {[%clk 0:04:39.8]} 9... O-O {[%clk
0:04:43]} 10. Rc1 {[%clk 0:04:33.3]} 10... Bxc3 {[%clk 0:04:41]} 11. Rxc3 {[%clk
0:04:31.8]} 11... d5 {[%clk 0:04:39.4]} 12. exd5 {[%clk 0:04:16.8]} 12... exd5
{[%clk 0:04:37.1]} 13. Bb3 {[%clk 0:04:09.7]} 13... Kh8 {[%clk 0:04:34.6]} 14.
Bc5 {[%clk 0:04:02.7]} 14... Be6 {[%clk 0:04:29.9]} 15. Re1 {[%clk 0:03:59.9]}
15... Bf7 {[%clk 0:04:28]} 16. Rce3 {[%clk 0:03:53.6]} 16... Re8 {[%clk
0:04:26]} 17. Nh4 {[%clk 0:03:43.7]} 17... d4 {[%clk 0:04:15.3]} 18. Rxe7 {[%clk
0:03:22.3]} 18... Rxe7 {[%clk 0:04:03.6]} 19. Bxe7 {[%clk 0:03:18.1]} 19... Bxb3
{[%clk 0:03:53.8]} 20. Ng6+ {[%clk 0:02:52.6]} 20... hxg6 {[%clk 0:03:47]} 21.
Qxb3 {[%clk 0:02:50.6]} 21... Nxe7 {[%clk 0:03:43.5]} 22. Qxb7 {[%clk
0:02:42.4]} 22... Nf5 {[%clk 0:03:32.4]} 23. g3 {[%clk 0:02:32]} 23... Rb8
{[%clk 0:03:30.9]} 24. Qxa7 {[%clk 0:02:27.4]} 24... Rxb2 {[%clk 0:03:29.2]} 25.
a4 {[%clk 0:02:07.6]} 25... d3 {[%clk 0:03:26.7]} 26. Rd1 {[%clk 0:02:01.2]}
26... d2 {[%clk 0:03:23.9]} 27. a5 {[%clk 0:01:49.8]} 27... Rc2 {[%clk
0:03:22.9]} 28. a6 {[%clk 0:01:35.2]} 28... Rc1 {[%clk 0:03:21.3]} 0-1

[Event "Live Chess"]
[Site "Chess.com"]
[Date "2023.05.20"]
[Round "-"]
[White "WelshTiger"]
[Black "CheckThis4"]
[Result "1-0"]
[WhiteElo "2397"]
[BlackElo "2546"]
[TimeControl "300"]
[EndTime "14:31:14 PDT"]
[Termination "WelshTiger won by resignation"]

1. e4 {[%clk 0:04:55.7]} 1... g6 {[%clk 0:04:53]} 2. d4 {[%clk 0:04:54.4]} 2...
Bg7 {[%clk 0:04:52.1]} 3. Nf3 {[%clk 0:04:50.6]} 3... c6 {[%clk 0:04:49.6]} 4.
Nc3 {[%clk 0:04:43.7]} 4... d5 {[%clk 0:04:47.1]} 5. h3 {[%clk 0:04:43.1]} 5...
Nf6 {[%clk 0:04:43.5]} 6. e5 {[%clk 0:04:41.2]} 6... Ne4 {[%clk 0:04:42.5]} 7.
Bd3 {[%clk 0:04:37]} 7... Nxc3 {[%clk 0:04:40.4]} 8. bxc3 {[%clk 0:04:36.9]}
8... c5 {[%clk 0:04:38.4]} 9. O-O {[%clk 0:04:29.8]} 9... Nc6 {[%clk 0:04:37.3]}
10. Be3 {[%clk 0:04:18.4]} 10... c4 {[%clk 0:04:32.2]} 11. Be2 {[%clk
0:04:17.2]} 11... Qa5 {[%clk 0:04:31.1]} 12. Qd2 {[%clk 0:04:12.4]} 12... Bf5
{[%clk 0:04:29.2]} 13. a4 {[%clk 0:04:10.6]} 13... f6 {[%clk 0:04:19.4]} 14.
Rfb1 {[%clk 0:04:03.5]} 14... Qc7 {[%clk 0:04:09.3]} 15. exf6 {[%clk 0:03:55.6]}
15... exf6 {[%clk 0:04:07.7]} 16. Bf4 {[%clk 0:03:52.9]} 16... Qd7 {[%clk
0:04:06.7]} 17. Rb5 {[%clk 0:03:40.2]} 17... O-O {[%clk 0:04:03]} 18. Rab1
{[%clk 0:03:39.4]} 18... b6 {[%clk 0:04:00.7]} 19. Qc1 {[%clk 0:03:29.9]} 19...
Rfe8 {[%clk 0:03:55.6]} 20. Bf1 {[%clk 0:03:25.1]} 20... Rad8 {[%clk 0:03:54]}
21. Nd2 {[%clk 0:03:24.1]} 21... g5 {[%clk 0:03:43.7]} 22. Rxd5 {[%clk
0:03:21.4]} 22... Qxd5 {[%clk 0:03:31.1]} 23. Bxc4 {[%clk 0:03:20.3]} 23... Qxc4
{[%clk 0:03:27.4]} 24. Nxc4 {[%clk 0:03:18.8]} 24... gxf4 {[%clk 0:03:26.5]} 25.
Qxf4 {[%clk 0:03:13.3]} 25... Bxc2 {[%clk 0:03:24.9]} 26. Rc1 {[%clk 0:03:11.5]}
26... Bxa4 {[%clk 0:03:10.5]} 27. Nd6 {[%clk 0:03:10.2]} 27... Rf8 {[%clk
0:02:50.9]} 28. Nf5 {[%clk 0:03:00.8]} 28... Rd7 {[%clk 0:02:42.5]} 29. Re1
{[%clk 0:02:50.7]} 29... Bb3 {[%clk 0:02:37.6]} 30. Qg4 {[%clk 0:02:27.9]} 30...
Kh8 {[%clk 0:02:29.8]} 31. Re3 {[%clk 0:02:11.8]} 31... Rc7 {[%clk 0:02:11.2]}
32. h4 {[%clk 0:02:09.5]} 32... Rg8 {[%clk 0:02:09]} 33. Qf4 {[%clk 0:02:04]}
33... Rf7 {[%clk 0:01:46.5]} 34. h5 {[%clk 0:01:59.9]} 34... Bf8 {[%clk
0:01:38]} 35. g3 {[%clk 0:01:53.6]} 35... a5 {[%clk 0:01:32.8]} 36. Nd6 {[%clk
0:01:34.1]} 36... Bxd6 {[%clk 0:01:25.8]} 37. Qxd6 {[%clk 0:01:34]} 37... Nd8
{[%clk 0:01:23.1]} 38. Qxb6 {[%clk 0:01:32.5]} 38... a4 {[%clk 0:01:21.9]} 39.
h6 {[%clk 0:01:27.8]} 39... Rgf8 {[%clk 0:01:09.8]} 40. Re1 {[%clk 0:01:21.8]}
40... Rb7 {[%clk 0:00:56.5]} 41. Qd6 {[%clk 0:01:19.6]} 41... Rbf7 {[%clk
0:00:52.2]} 42. Re7 {[%clk 0:01:14.2]} 42... Kg8 {[%clk 0:00:38.8]} 43. Rxf7
{[%clk 0:01:08.7]} 43... Kxf7 {[%clk 0:00:36.7]} 44. Qd7+ {[%clk 0:01:04.8]}
44... Kg6 {[%clk 0:00:35]} 45. Qg7+ {[%clk 0:01:04.1]} 1-0

[Event "Live Chess"]
[Site "Chess.com"]
[Date "2023.05.20"]
[Round "-"]
[White "luckywookie"]
[Black "JanMur7"]
[Result "0-1"]
[WhiteElo "743"]
[BlackElo "1982"]
[TimeControl "300"]
[EndTime "14:31:39 PDT"]
[Termination "JanMur7 won by checkmate"]

1. e4 {[%clk 0:04:58.6]} 1... e5 {[%clk 0:04:58.3]} 2. c3 {[%clk 0:04:56.6]}
2... Nf6 {[%clk 0:04:56.9]} 3. Nf3 {[%clk 0:04:48.4]} 3... Nxe4 {[%clk
0:04:53.9]} 4. Nxe5 {[%clk 0:04:45.1]} 4... Qe7 {[%clk 0:04:51.7]} 5. d4 {[%clk
0:04:42]} 5... d6 {[%clk 0:04:50.3]} 6. Nf3 {[%clk 0:04:38.9]} 6... Nxc3+ {[%clk
0:04:46.9]} 7. Be3 {[%clk 0:04:35.1]} 7... Nxd1 {[%clk 0:04:45.6]} 8. Kxd1
{[%clk 0:04:33.2]} 8... Bg4 {[%clk 0:04:44.1]} 9. Be2 {[%clk 0:04:30.7]} 9...
Nc6 {[%clk 0:04:43]} 10. Nc3 {[%clk 0:04:29.8]} 10... O-O-O {[%clk 0:04:41.1]}
11. Nd5 {[%clk 0:04:27.4]} 11... Qe6 {[%clk 0:04:38.3]} 12. Bc4 {[%clk
0:04:24.3]} 12... Qe4 {[%clk 0:04:33.4]} 13. Re1 {[%clk 0:04:19.3]} 13... Bxf3+
{[%clk 0:04:31]} 14. gxf3 {[%clk 0:04:18.3]} 14... Qxf3+ {[%clk 0:04:30.9]} 15.
Kd2 {[%clk 0:04:17.6]} 15... Na5 {[%clk 0:04:23.8]} 16. b3 {[%clk 0:04:15.1]}
16... Nxc4+ {[%clk 0:04:18.4]} 17. bxc4 {[%clk 0:04:13.4]} 17... c6 {[%clk
0:04:16.8]} 18. Nc3 {[%clk 0:04:04.8]} 18... d5 {[%clk 0:04:10.9]} 19. c5 {[%clk
0:04:02]} 19... f5 {[%clk 0:04:06.8]} 20. Rab1 {[%clk 0:04:00.9]} 20... f4
{[%clk 0:04:04.6]} 21. Rb3 {[%clk 0:03:40.9]} 21... fxe3+ {[%clk 0:03:49.3]} 22.
fxe3 {[%clk 0:03:39.3]} 22... g6 {[%clk 0:03:42.4]} 23. Reb1 {[%clk 0:03:33.7]}
23... Rd7 {[%clk 0:03:37.2]} 24. a4 {[%clk 0:03:26.6]} 24... Qf2+ {[%clk
0:03:30.8]} 25. Ne2 {[%clk 0:03:24.8]} 25... Bh6 {[%clk 0:03:28.6]} 26. a5
{[%clk 0:03:20.7]} 26... Re8 {[%clk 0:03:24.7]} 27. a6 {[%clk 0:03:18.7]} 27...
Bxe3+ {[%clk 0:03:20.8]} 28. Rxe3 {[%clk 0:03:05.7]} 28... Qxe3+ {[%clk
0:03:16.7]} 29. Kd1 {[%clk 0:03:01.4]} 29... Qxe2+ {[%clk 0:03:16.6]} 30. Kc1
{[%clk 0:03:00.2]} 30... Re3 {[%clk 0:03:12.9]} 31. axb7+ {[%clk 0:02:57]} 31...
Kb8 {[%clk 0:03:11.2]} 32. Rb2 {[%clk 0:02:54.8]} 32... Rc3+ {[%clk 0:03:07.9]}
33. Rc2 {[%clk 0:02:53.5]} 33... Qxc2# {[%clk 0:03:06.3]} 0-1

[Event "Live Chess"]
[Site "Chess.com"]
[Date "2023.05.20"]
[Round "-"]
[White "weibs440"]
[Black "JohanKjeldahl"]
[Result "0-1"]
[WhiteElo "943"]
[BlackElo "1852"]
[TimeControl "300"]
[EndTime "14:31:42 PDT"]
[Termination "JohanKjeldahl won by resignation"]

1. e4 {[%clk 0:04:59.5]} 1... c5 {[%clk 0:04:57.7]} 2. Nc3 {[%clk 0:04:58.1]}
2... e6 {[%clk 0:04:56.1]} 3. f4 {[%clk 0:04:57.1]} 3... Nc6 {[%clk 0:04:54.2]}
4. Nf3 {[%clk 0:04:56.5]} 4... a6 {[%clk 0:04:51.8]} 5. d3 {[%clk 0:04:50]} 5...
b5 {[%clk 0:04:50.8]} 6. g3 {[%clk 0:04:43.9]} 6... Bb7 {[%clk 0:04:49.3]} 7.
Bg2 {[%clk 0:04:42.2]} 7... Nf6 {[%clk 0:04:46.2]} 8. O-O {[%clk 0:04:40.7]}
8... Be7 {[%clk 0:04:45.3]} 9. h3 {[%clk 0:04:28]} 9... O-O {[%clk 0:04:43.7]}
10. Qe1 {[%clk 0:04:23.2]} 10... b4 {[%clk 0:04:32.6]} 11. Ne2 {[%clk
0:04:21.2]} 11... d5 {[%clk 0:04:31.6]} 12. e5 {[%clk 0:04:19.5]} 12... Ne8
{[%clk 0:04:28]} 13. g4 {[%clk 0:04:04.1]} 13... g6 {[%clk 0:04:24.9]} 14. f5
{[%clk 0:03:57.3]} 14... exf5 {[%clk 0:04:18.5]} 15. gxf5 {[%clk 0:03:51.2]}
15... gxf5 {[%clk 0:04:16.4]} 16. Qg3+ {[%clk 0:03:37.1]} 16... Kh8 {[%clk
0:04:12.4]} 17. Ng5 {[%clk 0:03:01.2]} 17... Bxg5 {[%clk 0:04:03.5]} 18. Bxg5
{[%clk 0:02:57.8]} 18... Qd7 {[%clk 0:04:00.9]} 19. Qh4 {[%clk 0:02:44.1]} 19...
Rg8 {[%clk 0:03:41]} 20. Bf6+ {[%clk 0:02:36.3]} 20... Nxf6 {[%clk 0:03:39.2]}
21. Qxf6+ {[%clk 0:02:34.7]} 21... Rg7 {[%clk 0:03:37.8]} 22. Rxf5 {[%clk
0:02:31.7]} 22... Ne7 {[%clk 0:03:28.2]} 23. Rg5 {[%clk 0:02:09.9]} 23... Rg8
{[%clk 0:03:26.7]} 24. Rxg7 {[%clk 0:02:03.3]} 24... Rxg7 {[%clk 0:03:24.9]} 25.
Nf4 {[%clk 0:01:54.6]} 25... Qf5 {[%clk 0:02:33.8]} 26. Qxf5 {[%clk 0:01:47.1]}
26... Nxf5 {[%clk 0:02:31.9]} 27. Kh2 {[%clk 0:01:44.3]} 27... Ne3 {[%clk
0:02:27.6]} 28. Rg1 {[%clk 0:01:26.1]} 28... Nxc2 {[%clk 0:02:16.8]} 29. Nh5
{[%clk 0:01:23.1]} 29... Rg5 {[%clk 0:02:12.2]} 30. Bxd5 {[%clk 0:01:09.4]}
30... Rxg1 {[%clk 0:02:07.5]} 31. Bxb7 {[%clk 0:00:59.1]} 31... Rg5 {[%clk
0:01:57]} 32. Nf6 {[%clk 0:00:56.9]} 32... Rxe5 {[%clk 0:01:53.2]} 33. Be4
{[%clk 0:00:52.2]} 33... h6 {[%clk 0:01:37.6]} 34. Nd7 {[%clk 0:00:45.2]} 34...
Rg5 {[%clk 0:01:31.1]} 35. h4 {[%clk 0:00:37.9]} 35... Rg4 {[%clk 0:01:26.9]}
36. Nxc5 {[%clk 0:00:34.5]} 36... Rxh4+ {[%clk 0:01:24.8]} 37. Kg3 {[%clk
0:00:33.1]} 37... Rh5 {[%clk 0:01:20.8]} 38. Nxa6 {[%clk 0:00:29.5]} 38... Ra5
{[%clk 0:01:16]} 39. Nc5 {[%clk 0:00:22.2]} 39... Rxa2 {[%clk 0:01:13.9]} 40. b3
{[%clk 0:00:19]} 40... Kg7 {[%clk 0:01:05.7]} 41. Kg4 {[%clk 0:00:17.4]} 41...
Nd4 {[%clk 0:01:02.3]} 42. Kf4 {[%clk 0:00:13.4]} 42... h5 {[%clk 0:00:59.7]}
0-1

[Event "Live Chess"]
[Site "Chess.com"]
[Date "2023.05.20"]
[Round "-"]
[White "JoshMcK"]
[Black "Ferrarifan27"]
[Result "0-1"]
[WhiteElo "1551"]
[BlackElo "2074"]
[TimeControl "300"]
[EndTime "14:32:08 PDT"]
[Termination "Ferrarifan27 won by resignation"]

1. e4 {[%clk 0:04:58.7]} 1... e5 {[%clk 0:04:58.3]} 2. Nf3 {[%clk 0:04:57.9]}
2... Nc6 {[%clk 0:04:57]} 3. Bb5 {[%clk 0:04:57.5]} 3... a6 {[%clk 0:04:55.5]}
4. Ba4 {[%clk 0:04:56.9]} 4... Nf6 {[%clk 0:04:51.5]} 5. O-O {[%clk 0:04:56.3]}
5... Be7 {[%clk 0:04:49.5]} 6. Re1 {[%clk 0:04:55.9]} 6... b5 {[%clk 0:04:47.9]}
7. Bb3 {[%clk 0:04:55.4]} 7... O-O {[%clk 0:04:47.5]} 8. a4 {[%clk 0:04:51]}
8... Bb7 {[%clk 0:04:41.2]} 9. d3 {[%clk 0:04:49.4]} 9... h6 {[%clk 0:04:34]}
10. h3 {[%clk 0:04:48.4]} 10... Bc5 {[%clk 0:04:29.6]} 11. Nbd2 {[%clk
0:04:34.6]} 11... d6 {[%clk 0:04:25.8]} 12. Nf1 {[%clk 0:04:32.9]} 12... Qe7
{[%clk 0:04:19.2]} 13. Be3 {[%clk 0:04:30.9]} 13... Nd4 {[%clk 0:04:12.9]} 14.
Nxd4 {[%clk 0:04:25.9]} 14... Bxd4 {[%clk 0:04:07.2]} 15. Bxd4 {[%clk
0:04:24.3]} 15... exd4 {[%clk 0:04:06.6]} 16. Nd2 {[%clk 0:03:56.2]} 16... c5
{[%clk 0:03:48]} 17. axb5 {[%clk 0:03:35.8]} 17... axb5 {[%clk 0:03:46.4]} 18.
Nf3 {[%clk 0:03:20.2]} 18... Rxa1 {[%clk 0:03:42.2]} 19. Qxa1 {[%clk 0:03:17.8]}
19... Ra8 {[%clk 0:03:40.8]} 20. Qc1 {[%clk 0:03:11.5]} 20... Qc7 {[%clk
0:03:31.5]} 21. c4 {[%clk 0:03:05.6]} 21... b4 {[%clk 0:03:24.1]} 22. Qc2 {[%clk
0:02:54]} 22... Bc6 {[%clk 0:03:16.6]} 23. Qe2 {[%clk 0:02:34.4]} 23... Nd7
{[%clk 0:03:08.5]} 24. Qf1 {[%clk 0:02:26.4]} 24... Ne5 {[%clk 0:03:06.4]} 25.
Bc2 {[%clk 0:02:23.1]} 25... Ra2 {[%clk 0:03:01.7]} 26. Nxe5 {[%clk 0:02:20.4]}
26... dxe5 {[%clk 0:03:00.3]} 27. Rb1 {[%clk 0:02:19.2]} 27... Qe7 {[%clk
0:02:53.2]} 28. Qc1 {[%clk 0:02:17.5]} 28... Qg5 {[%clk 0:02:46.3]} 29. Qxg5
{[%clk 0:02:11.9]} 29... hxg5 {[%clk 0:02:46.2]} 30. Bb3 {[%clk 0:02:11]} 30...
Ra7 {[%clk 0:02:42.3]} 31. Bd1 {[%clk 0:02:09.9]} 31... Kh7 {[%clk 0:02:34.5]}
32. Kh2 {[%clk 0:02:05.3]} 32... Kg6 {[%clk 0:02:32.1]} 33. Kg3 {[%clk
0:02:03.3]} 33... Bd7 {[%clk 0:02:27]} 34. Bg4 {[%clk 0:01:59.5]} 34... Bc6
{[%clk 0:02:18.6]} 35. Bf5+ {[%clk 0:01:45.8]} 35... Kf6 {[%clk 0:02:17.7]} 36.
Kg4 {[%clk 0:01:44.5]} 36... g6 {[%clk 0:02:14.5]} 37. h4 {[%clk 0:01:31.8]}
37... gxf5+ {[%clk 0:02:13]} 38. exf5 {[%clk 0:01:31.7]} 38... gxh4 {[%clk
0:02:11.9]} 39. Kxh4 {[%clk 0:01:30.8]} 39... Bxg2 {[%clk 0:02:10.9]} 40. Kg4
{[%clk 0:01:24.5]} 40... Ra2 {[%clk 0:02:05.6]} 41. Kg3 {[%clk 0:01:22.1]} 41...
Bc6 {[%clk 0:02:01.7]} 42. f4 {[%clk 0:01:21.1]} 42... Kxf5 {[%clk 0:01:56.3]}
43. fxe5 {[%clk 0:01:20.1]} 43... Kxe5 {[%clk 0:01:55.7]} 44. Kg4 {[%clk
0:01:15.6]} 44... f5+ {[%clk 0:01:50.5]} 45. Kg3 {[%clk 0:01:13]} 45... f4+
{[%clk 0:01:48.8]} 46. Kf2 {[%clk 0:01:12.2]} 46... f3 {[%clk 0:01:47.2]} 47.
Ke1 {[%clk 0:01:10.9]} 47... Kf4 {[%clk 0:01:45.9]} 48. Kf2 {[%clk 0:01:09.9]}
48... Ba4 {[%clk 0:01:44.4]} 49. Kf1 {[%clk 0:01:05.9]} 49... Bc2 {[%clk
0:01:42.6]} 50. Re1 {[%clk 0:01:02.2]} 50... Bxd3+ {[%clk 0:01:41.5]} 51. Kg1
{[%clk 0:01:00.5]} 51... Rxb2 {[%clk 0:01:40.2]} 52. Rc1 {[%clk 0:00:57.2]}
52... f2+ {[%clk 0:01:36]} 53. Kh1 {[%clk 0:00:52.3]} 53... f1=Q+ {[%clk
0:01:33.6]} 54. Rxf1+ {[%clk 0:00:51.3]} 54... Bxf1 {[%clk 0:01:32.8]} 55. Kg1
{[%clk 0:00:50.5]} 55... Bxc4 {[%clk 0:01:31.1]} 0-1

[Event "Live Chess"]
[Site "Chess.com"]
[Date "2023.05.20"]
[Round "-"]
[White "defenderalist"]
[Black "ChessTWSS"]
[Result "1-0"]
[WhiteElo "1636"]
[BlackElo "1516"]
[TimeControl "300"]
[EndTime "14:32:12 PDT"]
[Termination "defenderalist won by resignation"]

1. e4 {[%clk 0:04:55.2]} 1... c5 {[%clk 0:04:52.2]} 2. Nf3 {[%clk 0:04:53.7]}
2... Nc6 {[%clk 0:04:48.2]} 3. d4 {[%clk 0:04:52.6]} 3... cxd4 {[%clk
0:04:43.5]} 4. Nxd4 {[%clk 0:04:52.5]} 4... e5 {[%clk 0:04:38.5]} 5. Nb5 {[%clk
0:04:47.3]} 5... a6 {[%clk 0:04:33.6]} 6. Nd6+ {[%clk 0:04:43.5]} 6... Bxd6
{[%clk 0:04:27.4]} 7. Qxd6 {[%clk 0:04:43]} 7... Qe7 {[%clk 0:04:21.9]} 8. Qxe7+
{[%clk 0:04:37.9]} 8... Ngxe7 {[%clk 0:04:19.7]} 9. c3 {[%clk 0:04:30.4]} 9...
d5 {[%clk 0:04:14.6]} 10. exd5 {[%clk 0:04:28.7]} 10... Nxd5 {[%clk 0:04:14.5]}
11. Bc4 {[%clk 0:04:23.9]} 11... Be6 {[%clk 0:04:09.5]} 12. O-O {[%clk
0:04:19.6]} 12... Nxc3 {[%clk 0:04:04.7]} 13. Bxe6 {[%clk 0:04:15.8]} 13... Ne2+
{[%clk 0:03:56.7]} 14. Kh1 {[%clk 0:04:14.1]} 14... fxe6 {[%clk 0:03:51.9]} 15.
Be3 {[%clk 0:03:57.4]} 15... Ncd4 {[%clk 0:03:37.6]} 16. Nc3 {[%clk 0:03:52.5]}
16... Nxc3 {[%clk 0:03:34.2]} 17. bxc3 {[%clk 0:03:51.3]} 17... Nc2 {[%clk
0:03:30.2]} 18. Rab1 {[%clk 0:03:46]} 18... Nxe3 {[%clk 0:03:24.3]} 19. fxe3
{[%clk 0:03:43.5]} 19... Rc8 {[%clk 0:03:12.4]} 20. Rxb7 {[%clk 0:03:36.4]}
20... Rxc3 {[%clk 0:03:10.9]} 21. Rb8+ {[%clk 0:03:26]} 21... Ke7 {[%clk
0:02:57.3]} 22. Rxh8 {[%clk 0:03:24.3]} 22... Rxe3 {[%clk 0:02:51.4]} 23. Rxh7
{[%clk 0:03:22.8]} 23... Kd6 {[%clk 0:02:50.4]} 24. Rxg7 {[%clk 0:03:21.5]}
24... Kd5 {[%clk 0:02:50.3]} 25. Rd7+ {[%clk 0:03:18.6]} 25... Ke4 {[%clk
0:02:48.1]} 26. Kg1 {[%clk 0:03:12.8]} 26... Re2 {[%clk 0:02:41.3]} 27. a4
{[%clk 0:03:08.1]} 27... Ke3 {[%clk 0:02:37.4]} 28. Rf3+ {[%clk 0:03:03.7]}
28... Ke4 {[%clk 0:02:35.5]} 29. Kf1 {[%clk 0:02:56.6]} 29... Ra2 {[%clk
0:02:30]} 30. Rh3 {[%clk 0:02:30.5]} 30... Kf4 {[%clk 0:02:21.7]} 31. Rf7+
{[%clk 0:02:24.3]} 31... Ke4 {[%clk 0:02:16.4]} 32. Rh4+ {[%clk 0:02:23]} 32...
Ke3 {[%clk 0:02:12.2]} 33. Rf3+ {[%clk 0:02:21.1]} 33... Kd2 {[%clk 0:02:07.8]}
34. Rf2+ {[%clk 0:02:18.6]} 34... Kd3 {[%clk 0:02:05.3]} 35. Rxa2 {[%clk
0:02:17.9]} 35... e4 {[%clk 0:02:05.2]} 36. Rh3+ {[%clk 0:02:16.7]} 36... e3
{[%clk 0:02:05.1]} 37. Ra3+ {[%clk 0:02:14.2]} 37... Kc2 {[%clk 0:02:00.7]} 1-0

[Event "Live Chess"]
[Site "Chess.com"]
[Date "2023.05.20"]
[Round "-"]
[White "AttackingSnowLeopard"]
[Black "Singapourfeuj"]
[Result "1-0"]
[WhiteElo "2113"]
[BlackElo "2241"]
[TimeControl "300"]
[EndTime "14:33:06 PDT"]
[Termination "AttackingSnowLeopard won by checkmate"]

1. d4 {[%clk 0:04:57.6]} 1... Nf6 {[%clk 0:04:58.7]} 2. c4 {[%clk 0:04:56.3]}
2... g6 {[%clk 0:04:58.1]} 3. Nc3 {[%clk 0:04:52.9]} 3... Bg7 {[%clk 0:04:57.3]}
4. e4 {[%clk 0:04:51.5]} 4... d6 {[%clk 0:04:56.6]} 5. Be2 {[%clk 0:04:50.5]}
5... O-O {[%clk 0:04:55.4]} 6. Be3 {[%clk 0:04:49.6]} 6... e5 {[%clk 0:04:54.1]}
7. d5 {[%clk 0:04:48.4]} 7... c6 {[%clk 0:04:53.5]} 8. h4 {[%clk 0:04:45.3]}
8... cxd5 {[%clk 0:04:52.8]} 9. cxd5 {[%clk 0:04:44.1]} 9... a5 {[%clk 0:04:52]}
10. h5 {[%clk 0:04:42.7]} 10... Na6 {[%clk 0:04:50.9]} 11. hxg6 {[%clk
0:04:37.4]} 11... fxg6 {[%clk 0:04:49.7]} 12. Nf3 {[%clk 0:04:36.6]} 12... Nc5
{[%clk 0:04:47.5]} 13. Bxc5 {[%clk 0:04:35.4]} 13... dxc5 {[%clk 0:04:46.5]} 14.
Qd2 {[%clk 0:04:34]} 14... Bd7 {[%clk 0:04:38.7]} 15. O-O-O {[%clk 0:04:30.3]}
15... b5 {[%clk 0:04:36.2]} 16. Bxb5 {[%clk 0:04:22.2]} 16... Bxb5 {[%clk
0:04:35]} 17. Nxb5 {[%clk 0:04:21.4]} 17... Nxe4 {[%clk 0:04:34]} 18. Qc2 {[%clk
0:04:21.1]} 18... Nd6 {[%clk 0:04:28.8]} 19. Nxd6 {[%clk 0:04:18.5]} 19... Qxd6
{[%clk 0:04:27.8]} 20. Kb1 {[%clk 0:04:18]} 20... a4 {[%clk 0:04:25.1]} 21. Ng5
{[%clk 0:04:15.9]} 21... a3 {[%clk 0:04:18.2]} 22. b3 {[%clk 0:04:10.1]} 22...
e4 {[%clk 0:04:16.6]} 23. Ne6 {[%clk 0:04:06.7]} 23... Bh8 {[%clk 0:04:09.1]}
24. Rxh7 {[%clk 0:03:41.1]} 24... Kxh7 {[%clk 0:04:03.6]} 25. Rh1+ {[%clk
0:03:39.4]} 25... Kg8 {[%clk 0:04:02.2]} 26. Rxh8+ {[%clk 0:03:38.1]} 26... Kf7
{[%clk 0:03:55.6]} 27. Rh7+ {[%clk 0:03:31]} 27... Ke8 {[%clk 0:03:49.2]} 28.
Qe2 {[%clk 0:03:05.5]} 28... Qxd5 {[%clk 0:03:45.2]} 29. Qb5+ {[%clk 0:03:03]}
29... Qd7 {[%clk 0:03:42.1]} 30. Qxd7# {[%clk 0:03:01.7]} 1-0

[Event "Live Chess"]
[Site "Chess.com"]
[Date "2023.05.20"]
[Round "-"]
[White "JoeyCage"]
[Black "Long1968"]
[Result "1-0"]
[WhiteElo "2305"]
[BlackElo "1175"]
[TimeControl "300"]
[EndTime "14:33:07 PDT"]
[Termination "JoeyCage won by resignation"]

1. e4 {[%clk 0:04:56.1]} 1... e6 {[%clk 0:04:56.6]} 2. d4 {[%clk 0:04:55]} 2...
d5 {[%clk 0:04:54.4]} 3. Nc3 {[%clk 0:04:53.7]} 3... Bb4 {[%clk 0:04:49.5]} 4.
e5 {[%clk 0:04:52.3]} 4... c5 {[%clk 0:04:46.4]} 5. a3 {[%clk 0:04:45.6]} 5...
cxd4 {[%clk 0:04:44]} 6. axb4 {[%clk 0:04:44.1]} 6... dxc3 {[%clk 0:04:41.8]} 7.
bxc3 {[%clk 0:04:43.6]} 7... Qc7 {[%clk 0:04:38.8]} 8. Qd4 {[%clk 0:04:39.3]}
8... Nc6 {[%clk 0:04:32.5]} 9. Bb5 {[%clk 0:04:37.5]} 9... Bd7 {[%clk
0:04:29.1]} 10. Bxc6 {[%clk 0:04:36.1]} 10... bxc6 {[%clk 0:04:25.8]} 11. Nf3
{[%clk 0:04:30.5]} 11... Ne7 {[%clk 0:04:21.6]} 12. Be3 {[%clk 0:04:28.1]} 12...
Ng6 {[%clk 0:04:18.8]} 13. Rxa7 {[%clk 0:04:22.3]} 13... O-O {[%clk 0:04:11.7]}
14. Rxc7 {[%clk 0:04:15.4]} 1-0

[Event "Live Chess"]
[Site "Chess.com"]
[Date "2023.05.20"]
[Round "-"]
[White "stevochess11"]
[Black "gregor1903"]
[Result "1-0"]
[WhiteElo "1770"]
[BlackElo "1561"]
[TimeControl "300"]
[EndTime "14:33:16 PDT"]
[Termination "stevochess11 won by resignation"]

1. d4 {[%clk 0:04:56.9]} 1... Nf6 {[%clk 0:04:58.8]} 2. Nf3 {[%clk 0:04:56.8]}
2... g6 {[%clk 0:04:52.3]} 3. Nc3 {[%clk 0:04:55.7]} 3... Bg7 {[%clk 0:04:50.8]}
4. e4 {[%clk 0:04:55.1]} 4... d6 {[%clk 0:04:49.9]} 5. Be3 {[%clk 0:04:54.4]}
5... O-O {[%clk 0:04:47.7]} 6. Qd2 {[%clk 0:04:53.7]} 6... Nbd7 {[%clk
0:04:45.8]} 7. h3 {[%clk 0:04:50]} 7... e5 {[%clk 0:04:43.9]} 8. O-O-O {[%clk
0:04:47.5]} 8... a5 {[%clk 0:04:25.6]} 9. Bh6 {[%clk 0:04:44.1]} 9... c6 {[%clk
0:04:21.6]} 10. Ne2 {[%clk 0:04:42.9]} 10... Nxe4 {[%clk 0:04:10.6]} 11. Qe3
{[%clk 0:04:40.1]} 11... Bxh6 {[%clk 0:04:04.1]} 12. Qxh6 {[%clk 0:04:39.1]}
12... Nxf2 {[%clk 0:04:02.7]} 13. Ng5 {[%clk 0:04:38.2]} 13... Nf6 {[%clk
0:04:01.4]} 14. dxe5 {[%clk 0:04:34.8]} 14... dxe5 {[%clk 0:03:16.3]} 15. Rxd8
{[%clk 0:04:32.9]} 15... Rxd8 {[%clk 0:03:14.7]} 16. Nc3 {[%clk 0:04:26.6]}
16... Nxh1 {[%clk 0:03:08.7]} 17. Nce4 {[%clk 0:04:19.4]} 17... Rd6 {[%clk
0:02:46.1]} 18. Nxf6+ {[%clk 0:04:17.7]} 18... Rxf6 {[%clk 0:02:44.4]} 19. Qxh7+
{[%clk 0:04:17.6]} 19... Kf8 {[%clk 0:02:42.7]} 20. Qh8+ {[%clk 0:04:17.5]}
20... Ke7 {[%clk 0:02:41]} 21. Nh7 {[%clk 0:04:15]} 21... Re6 {[%clk 0:02:28.5]}
22. Qf8+ {[%clk 0:04:13.3]} 22... Kd7 {[%clk 0:02:23.2]} 23. Bc4 {[%clk
0:04:10.6]} 23... Re8 {[%clk 0:02:03.2]} 24. Qxf7+ {[%clk 0:04:08.2]} 24... Re7
{[%clk 0:02:02.2]} 25. Nf6+ {[%clk 0:04:06.5]} 25... Kd8 {[%clk 0:01:58.8]} 26.
Qf8+ {[%clk 0:04:04]} 1-0